bitfinex/quotes_BTCUSD_20251117
["timestamp","ask_amount","ask_price","bid_price","bid_amount"]
[1763398490037,2.0,94567.0,94534.0,0.03252]
[1763398490274,0.34813737,94566.0,94534.0,0.03252]
[1763398490491,2.0,94563.0,94534.0,0.03252]
[1763398490711,2.0,94561.0,94534.0,0.03252]
[1763398490888,0.50992372,94562.0,94534.0,0.03252]
[1763398490889,0.323,94558.0,94534.0,0.03252]
[1763398491101,0.00992372,94557.0,94534.0,0.03252]
[1763398491298,0.00992372,94556.0,94534.0,0.03252]
[1763398491597,0.00992372,94555.0,94534.0,0.03252]
[1763398491799,0.001,94537.0,94534.0,0.03252]
[1763398492148,0.01511135,94566.0,94534.0,0.03252]
[1763398492149,0.323,94564.0,94534.0,0.03252]
[1763398492345,0.002,94556.0,94547.0,0.02795989]
[1763398492571,0.002,94556.0,94548.0,0.02795989]
[1763398492767,0.002,94556.0,94535.0,0.05595379]
[1763398492768,0.323,94560.0,94549.0,0.02795989]
[1763398493110,0.10416178,94559.0,94547.0,0.02695989]
[1763398493267,0.323,94558.0,94537.0,0.05595379]
[1763398493471,0.32313163,94558.0,94534.0,0.05595379]
[1763398493670,0.00013163,94558.0,94535.0,0.05595379]
[1763398493874,0.00013163,94558.0,94514.0,0.09244776]
[1763398493875,0.04341874,94554.0,94527.0,0.05595379]
[1763398494081,0.04341874,94552.0,94526.0,0.05595379]
[1763398494299,0.10416178,94544.0,94525.0,0.05595379]
[1763398494460,0.54355037,94558.0,94522.0,0.05595379]
[1763398494660,0.00030585,94535.0,94524.0,0.05595379]
[1763398494993,0.04341874,94554.0,94524.0,0.05595379]
[1763398495196,0.04341874,94554.0,94495.0,0.09244776]
[1763398495197,0.04341874,94541.0,94523.0,0.05595379]
[1763398495476,0.04341874,94541.0,94519.0,0.05595379]
[1763398495681,0.04341874,94553.0,94524.0,0.05595379]
[1763398495971,0.04341874,94549.0,94526.0,0.05595379]
[1763398496150,0.04341874,94545.0,94526.0,0.05595379]
[1763398496351,0.323,94554.0,94525.0,0.05595379]
[1763398496552,0.001,94541.0,94525.0,0.05595379]
[1763398496955,0.001,94541.0,94511.0,0.09547064]
[1763398496956,0.001,94541.0,94527.0,0.05595379]
[1763398497120,0.001,94541.0,94526.0,0.05595379]
[1763398497337,0.001,94541.0,94524.0,0.05595379]
[1763398497764,2.0,94549.0,94527.0,0.05595379]
[1763398498004,2.0,94549.0,94540.0,0.03252]
[1763398498005,0.001,94549.0,94540.0,0.03252]
[1763398498136,0.001,94549.0,94541.0,0.02115484]
[1763398498341,0.0002,94570.0,94541.0,0.02115484]
[1763398498542,0.001,94565.0,94541.0,0.02015484]
[1763398498972,0.001,94565.0,94540.0,0.03252]
[1763398499928,0.001,94565.0,94534.0,0.05595379]
[1763398500261,0.04341874,94564.0,94534.0,0.05595379]
[1763398500463,0.001,94563.0,94534.0,0.05595379]
[1763398500682,0.001,94563.0,94535.0,0.08038618]
[1763398500894,0.2,94680.0,94557.0,0.06703]
[1763398500895,0.0002,94580.0,94557.0,0.06703]
[1763398501070,0.00113163,94558.0,94557.0,0.06703]
[1763398501288,0.00013163,94558.0,94557.0,0.06703]
[1763398501475,0.00107682,94558.0,94557.0,0.06703]
[1763398501693,0.00207682,94558.0,94557.0,0.12626]
[1763398501942,0.00207682,94558.0,94557.0,0.20450456]
[1763398502164,0.00107682,94558.0,94557.0,0.16970203]
[1763398502401,0.00107682,94558.0,94557.0,0.02229077]
[1763398503259,0.00107682,94558.0,94557.0,0.05105077]
[1763398503464,0.00107682,94558.0,94557.0,0.14855077]
[1763398504357,0.00107682,94558.0,94557.0,0.14955077]
[1763398504561,0.00107682,94558.0,94557.0,0.16970203]
[1763398505034,0.00107682,94558.0,94557.0,0.07893334]
[1763398505236,0.00107682,94558.0,94557.0,0.02229077]
[1763398505445,0.00107682,94558.0,94557.0,0.02329077]
[1763398505649,0.00107682,94558.0,94557.0,0.04444203]
[1763398505891,0.00107682,94558.0,94557.0,0.02229077]
[1763398506759,0.00107682,94558.0,94519.0,0.13439033]
[1763398506760,0.36641874,94557.0,94546.0,0.05564257]
[1763398506967,0.04341874,94555.0,94534.0,0.05564257]
[1763398507143,0.04341874,94555.0,94503.0,0.05923]
[1763398507144,0.323,94543.0,94532.0,0.05564257]
[1763398507376,0.001,94542.0,94531.0,0.05564257]
[1763398507610,0.323,94543.0,94496.0,0.13439033]
[1763398507611,0.04341874,94540.0,94528.0,0.05564257]
[1763398507816,0.323,94538.0,94526.0,0.05564257]
[1763398508018,0.001,94537.0,94525.0,0.05564257]
[1763398508328,0.10416178,94536.0,94525.0,0.05564257]
[1763398508526,0.04441874,94535.0,94524.0,0.05564257]
[1763398508814,0.36741874,94535.0,94523.0,0.05564257]
[1763398508979,0.36641874,94535.0,94524.0,0.05564257]
[1763398509191,0.323,94533.0,94524.0,0.05564257]
[1763398509393,0.001,94532.0,94523.0,0.05564257]
[1763398509603,0.04341874,94531.0,94523.0,0.05564257]
[1763398509772,0.001,94530.0,94521.0,0.05564257]
[1763398510149,0.04341874,94527.0,94516.0,0.05564257]
[1763398510413,0.04381618,94530.0,94515.0,0.05564257]
[1763398510414,2.36641874,94516.0,94515.0,0.05564257]
[1763398510643,0.10416178,94517.0,94511.0,0.05564257]
[1763398510644,0.36641874,94512.0,94511.0,0.05564257]
[1763398510857,0.36641874,94512.0,94507.0,0.05564257]
[1763398511073,0.05341873,94510.0,94504.0,2.57e-06]
[1763398511289,0.05341873,94510.0,94472.0,0.13439033]
[1763398511290,0.36641874,94506.0,94488.0,0.07430909]
[1763398511504,2.36741874,94505.0,94504.0,0.00013168]
[1763398511717,2.36641874,94505.0,94504.0,0.00013168]
[1763398511949,0.36641874,94504.0,94480.0,0.07430909]
[1763398512161,0.10366938,94509.0,94480.0,0.0004391]
[1763398512162,2.0,94501.0,94480.0,0.0004391]
[1763398512380,2.0,94497.0,94480.0,0.0004391]
[1763398512573,0.001,94496.0,94480.0,0.0004391]
[1763398512767,0.10416178,94482.0,94480.0,0.0004391]
[1763398512968,0.001,94481.0,94480.0,0.0004391]
[1763398513375,0.01467523,94481.0,94480.0,0.0004391]
[1763398513513,0.10416178,94498.0,94480.0,0.0004391]
[1763398513514,2.0,94495.0,94480.0,0.0004391]
[1763398513723,2.0,94495.0,94484.0,0.03636458]
[1763398513724,0.00999999,94490.0,94484.0,0.03636458]
[1763398513961,2.0,94488.0,94482.0,0.03240458]
[1763398514178,0.323,94480.0,94466.0,0.07430909]
[1763398514388,2.0,94478.0,94466.0,4.391e-05]
[1763398514626,2.0,94476.0,94466.0,4.391e-05]
[1763398514831,0.323,94480.0,94458.0,0.07430909]
[1763398514832,0.323,94466.0,94458.0,0.07430909]
[1763398515033,0.323,94463.0,94457.0,0.07430909]
[1763398515286,0.001,94462.0,94457.0,0.07444076]
[1763398515488,0.001,94462.0,94457.0,0.00013167]
[1763398516309,0.001,94463.0,94457.0,0.00013167]
[1763398517348,0.001,94463.0,94457.0,1.67e-06]
[1763398517546,0.323,94461.0,94450.0,0.07430909]
[1763398517753,0.001,94460.0,94451.0,0.07430909]
[1763398518364,0.001,94460.0,94449.0,0.07430909]
[1763398518751,0.001,94460.0,94450.0,0.0966489]
[1763398518962,0.001,94460.0,94451.0,0.02233981]
[1763398519166,0.001,94460.0,94452.0,0.02233981]
[1763398519388,0.001,94460.0,94453.0,0.02233981]
[1763398519598,0.001,94460.0,94454.0,0.02233981]
[1763398519811,0.001,94460.0,94455.0,0.02233981]
[1763398520025,0.001,94460.0,94448.0,0.07430909]
[1763398520026,0.001,94460.0,94456.0,0.02233981]
[1763398520225,0.001,94460.0,94427.0,0.02118038]
[1763398520226,0.001,94460.0,94457.0,0.02233981]
[1763398520482,0.001,94460.0,94458.0,0.02233981]
[1763398520613,0.001,94460.0,94459.0,0.02233981]
[1763398522369,0.323,94447.0,94443.0,0.07430909]
[1763398522539,0.323,94445.0,94442.0,0.07430909]
[1763398522736,0.10416178,94446.0,94434.0,0.07430909]
[1763398523177,0.10416178,94446.0,94433.0,0.07430909]
[1763398523354,0.10416178,94446.0,94429.0,0.07430909]
[1763398523564,0.10416178,94446.0,94430.0,0.07430909]
[1763398523742,0.10416178,94446.0,94410.0,0.0004]
[1763398523743,0.04341874,94459.0,94428.0,0.07430909]
[1763398523957,2.0,94458.0,94431.0,0.07430909]
[1763398524155,2.0,94458.0,94430.0,0.07430909]
[1763398524352,2.0,94459.0,94431.0,0.07430909]
[1763398524552,0.001,94446.0,94431.0,0.07430909]
[1763398524825,0.33299999,94460.0,94431.0,0.07430909]
[1763398524977,2.0,94457.0,94431.0,0.07430909]
[1763398525211,0.10416178,94439.0,94431.0,0.07430909]
[1763398525416,0.06565137,94457.0,94420.0,0.0004]
[1763398525417,0.323,94448.0,94429.0,0.07430909]
[1763398525599,0.323,94448.0,94421.0,0.02796]
[1763398525600,2.0,94446.0,94421.0,0.07430909]
[1763398525960,2.0,94446.0,94420.0,0.07470909]
[1763398526336,0.10416178,94430.0,94420.0,0.0004]
[1763398526696,0.323,94429.0,94420.0,0.0004]
[1763398527602,0.00013147,94429.0,94420.0,0.0004]
[1763398528355,0.00113147,94429.0,94420.0,0.0004]
[1763398528735,0.00013147,94429.0,94420.0,0.0004]
[1763398531051,0.00013147,94429.0,94428.0,0.03729]
[1763398531262,1.47e-06,94429.0,94428.0,0.11721015]
[1763398531458,1.47e-06,94429.0,94428.0,0.09603]
[1763398533041,0.01999999,94490.0,94428.0,0.11591776]
[1763398533245,0.323,94477.0,94453.0,0.0557112]
[1763398533451,0.10416178,94480.0,94452.0,0.0557112]
[1763398533452,2.0,94474.0,94452.0,0.0557112]
[1763398533869,2.0,94474.0,94429.0,0.05874]
[1763398533870,2.0,94474.0,94451.0,0.0557112]
[1763398534270,1.99984079,94474.0,94451.0,0.0557112]
[1763398534473,1.99984079,94474.0,94430.0,0.151592]
[1763398534474,1.99984079,94474.0,94454.0,0.0557112]
[1763398534679,0.10416178,94465.0,94454.0,0.0557112]
[1763398534882,0.323,94464.0,94453.0,0.0557112]
[1763398535114,0.323,94464.0,94450.0,0.0557112]
[1763398535343,0.323,94464.0,94429.0,0.092852]
[1763398535344,0.323,94464.0,94453.0,0.0557112]
[1763398535975,0.323,94464.0,94451.0,0.0557112]
[1763398536340,0.10416178,94465.0,94449.0,0.0557112]
[1763398536921,0.10416178,94465.0,94423.0,0.01781692]
[1763398536922,0.10416178,94450.0,94447.0,0.0557112]
[1763398537126,0.10416178,94450.0,94444.0,0.0557112]
[1763398538233,0.10416178,94450.0,94443.0,0.0557112]
[1763398538434,0.323,94449.0,94444.0,0.0557112]
[1763398538630,0.323,94449.0,94443.0,0.0557112]
[1763398539030,2.0,94444.0,94439.0,0.0557112]
[1763398539379,2.0,94444.0,94426.0,0.0742816]
[1763398539380,2.0,94444.0,94440.0,0.0557112]
[1763398539563,2.0,94444.0,94439.0,0.0557112]
[1763398539986,0.12416177,94450.0,94424.0,0.0742816]
[1763398539987,0.323,94441.0,94424.0,0.0742816]
[1763398540191,0.323,94441.0,94423.0,0.0742816]
[1763398540442,0.11416178,94450.0,94421.0,0.0742816]
[1763398540651,0.11416178,94450.0,94426.0,0.0742816]
[1763398540997,0.11416178,94450.0,94425.0,0.0742816]
[1763398541206,0.001,94441.0,94426.0,0.0742816]
[1763398541401,0.11416178,94450.0,94426.0,0.0742816]
[1763398541817,0.10416178,94449.0,94427.0,0.0742816]
[1763398542342,0.02978214,94448.0,94420.0,0.0004]
[1763398542538,0.10416178,94449.0,94420.0,0.0004]
[1763398542539,0.02978214,94447.0,94420.0,0.0004]
[1763398542804,0.10416178,94434.0,94420.0,0.0004]
[1763398543012,0.02978214,94433.0,94420.0,0.0004]
[1763398543213,0.02978214,94432.0,94420.0,0.0004]
[1763398543415,0.02978214,94431.0,94420.0,0.0004]
[1763398543619,0.02978214,94430.0,94420.0,0.0004]
[1763398543821,0.02978214,94429.0,94420.0,0.0004]
[1763398544052,0.02978214,94428.0,94420.0,0.0004]
[1763398544272,0.10416178,94449.0,94420.0,0.0004]
[1763398544273,0.02978214,94427.0,94420.0,0.0004]
[1763398544474,0.02978214,94426.0,94420.0,0.0004]
[1763398544673,0.01985476,94425.0,94420.0,0.0004]
[1763398544879,0.01985476,94424.0,94420.0,0.0004]
[1763398545088,0.01985476,94423.0,94420.0,0.0004]
[1763398545294,0.01985476,94422.0,94420.0,0.0004]
[1763398545440,0.323,94446.0,94420.0,0.0004]
[1763398545441,0.01985476,94421.0,94420.0,0.0004]
[1763398547078,0.01985476,94421.0,94420.0,0.03769]
[1763398547278,0.01985476,94421.0,94420.0,0.0004]
[1763398547611,0.01985476,94421.0,94420.0,0.09643]
[1763398548429,0.01985476,94421.0,94420.0,0.03769]
[1763398548629,0.01985476,94421.0,94420.0,0.0004]
[1763398549280,1.295689,94400.0,94379.0,0.323]
[1763398549496,0.01985476,94399.0,94391.0,0.02889147]
[1763398549710,0.01985476,94398.0,94391.0,0.02889147]
[1763398549911,1.295689,94400.0,94399.0,0.03729]
[1763398550102,1.31543976,94400.0,94399.0,0.03729]
[1763398551205,1.31543976,94400.0,94399.0,0.09603]
[1763398554220,0.87915976,94400.0,94399.0,0.09603]
[1763398554407,0.87915976,94400.0,94399.0,3.46244874]
[1763398554834,0.859409,94400.0,94399.0,3.46244874]
[1763398556809,0.01,94450.0,94399.0,3.46244874]
[1763398557017,0.01,94450.0,94449.0,0.02162]
[1763398557256,0.02972923,94450.0,94449.0,0.02162]
[1763398558940,0.02972923,94450.0,94449.0,0.11765]
[1763398559626,0.02034,94489.0,94449.0,0.11765]
[1763398559871,0.00986536,94488.0,94450.0,0.07604522]
[1763398560102,0.00986536,94487.0,94451.0,0.05487]
[1763398560333,0.00986536,94486.0,94452.0,0.02117477]
[1763398560541,0.00013179,94489.0,94454.0,3.0]
[1763398560542,0.00986536,94485.0,94454.0,3.0]
[1763398560747,0.00013179,94489.0,94450.0,0.00999999]
[1763398560748,0.00013179,94489.0,94488.0,0.02835]
[1763398560953,0.00013179,94489.0,94488.0,0.11993]
[1763398561180,0.00013179,94489.0,94479.0,0.02835]
[1763398561381,0.00013179,94489.0,94480.0,0.0211685]
[1763398561590,0.00013179,94489.0,94488.0,0.03671]
[1763398562013,0.00013179,94489.0,94488.0,0.09158]
[1763398562299,0.00013179,94489.0,94488.0,3.09158]
[1763398562522,0.00025024,94533.0,94492.0,0.04341874]
[1763398562723,0.00025024,94533.0,94532.0,0.05664]
[1763398562724,0.00068956,94533.0,94532.0,0.05664]
[1763398562945,0.00068956,94533.0,94532.0,0.11151]
[1763398563398,0.04549956,94533.0,94500.0,0.02498]
[1763398563608,0.10370956,94533.0,94502.0,0.05487]
[1763398564096,0.04549956,94533.0,94503.0,0.01975723]
[1763398564315,0.04549956,94533.0,94503.0,0.01023112]
[1763398564514,0.04549956,94533.0,94500.0,0.02498]
[1763398564515,0.00068956,94533.0,94504.0,0.05487]
[1763398564746,0.00068956,94533.0,94532.0,0.05398]
[1763398564962,0.00068956,94533.0,94532.0,0.01727]
[1763398565398,0.00068956,94533.0,94532.0,0.10885]
[1763398566076,0.34298119,94501.0,94499.0,0.03180993]
[1763398566293,0.34298119,94501.0,94500.0,3.02498]
[1763398566530,0.34298119,94501.0,94500.0,3.04343]
[1763398566753,0.34298119,94501.0,94500.0,3.12188116]
[1763398567614,0.34298119,94501.0,94500.0,3.12288116]
[1763398567826,0.34298119,94501.0,94500.0,3.12188116]
[1763398568073,0.34298119,94501.0,94500.0,3.5067499]
[1763398568277,0.31115939,94501.0,94500.0,3.5067499]
[1763398568480,0.27933759,94501.0,94500.0,3.5067499]
[1763398568641,0.00025024,94533.0,94514.0,3.0]
[1763398568832,0.00068956,94533.0,94532.0,3.01845]
[1763398569376,0.00068956,94533.0,94532.0,3.0369]
[1763398569562,0.00068956,94533.0,94532.0,0.0369]
[1763398569796,0.00068956,94533.0,94532.0,3.05695587]
[1763398570003,0.00068956,94533.0,94532.0,3.0369]
[1763398570218,0.00068956,94533.0,94532.0,0.0369]
[1763398570422,0.00068956,94533.0,94532.0,3.05805685]
[1763398570700,0.00068956,94533.0,94532.0,3.40331874]
[1763398571501,0.00068956,94533.0,94532.0,3.43081621]
[1763398571701,0.00055956,94533.0,94532.0,3.43081621]
[1763398571911,0.00055956,94533.0,94532.0,3.40331874]
[1763398572118,0.00055956,94533.0,94532.0,3.43081427]
[1763398572320,0.00055956,94533.0,94532.0,3.40331874]
[1763398572499,0.00055956,94533.0,94532.0,3.48538847]
[1763398572936,0.00055956,94533.0,94532.0,3.48438847]
[1763398573150,0.00055956,94533.0,94532.0,3.48538847]
[1763398573369,0.00055956,94533.0,94532.0,0.51181343]
[1763398573586,0.00055956,94533.0,94532.0,3.0369]
[1763398573792,0.00055956,94533.0,94532.0,3.0379]
[1763398574210,0.00055956,94533.0,94532.0,0.001]
[1763398575098,0.00055956,94533.0,94500.0,0.02498]
[1763398575310,0.00055956,94533.0,94501.0,3.0]
[1763398575311,0.00999999,94530.0,94501.0,3.0]
[1763398575530,0.00055956,94533.0,94500.0,0.02498]
[1763398575531,0.00055956,94533.0,94532.0,0.002]
[1763398575791,0.00999999,94530.0,94503.0,3.0]
[1763398575984,0.00055956,94533.0,94501.0,3.0]
[1763398576197,0.00999999,94530.0,94501.0,3.0]
[1763398576620,0.00999999,94530.0,94502.0,0.01575994]
[1763398576842,0.00999999,94530.0,94501.0,3.0]
[1763398577159,0.00055956,94533.0,94501.0,3.0]
[1763398577366,0.00999999,94530.0,94502.0,0.0133367]
[1763398577569,0.01999998,94530.0,94501.0,3.0]
[1763398577991,0.01999998,94530.0,94500.0,0.02498]
[1763398577992,0.02887,94529.0,94500.0,0.02498]
[1763398578196,0.00999999,94520.0,94501.0,0.02116379]
[1763398578579,0.00999999,94530.0,94501.0,0.02116379]
[1763398578580,0.00999999,94540.0,94501.0,3.02116379]
[1763398578775,0.00999999,94540.0,94501.0,3.0]
[1763398579007,0.00999999,94540.0,94503.0,3.0]
[1763398579264,0.00999999,94540.0,94505.0,3.0]
[1763398579469,0.00999999,94540.0,94500.0,0.02498]
[1763398579470,0.01999998,94540.0,94507.0,3.0]
[1763398579676,0.01999998,94540.0,94509.0,0.04341874]
[1763398579849,0.02783,94552.0,94502.0,0.0708437]
[1763398579850,0.02887,94549.0,94502.0,0.0708437]
[1763398579992,0.00999999,94540.0,94503.0,3.0]
[1763398580196,0.02887,94549.0,94505.0,3.0]
[1763398580396,0.00999999,94540.0,94507.0,3.0]
[1763398580659,0.00999999,94540.0,94504.0,3.0]
[1763398581038,0.01999998,94540.0,94504.0,3.0]
[1763398581257,0.01999998,94540.0,94505.0,0.0211629]
[1763398581569,0.01999998,94530.0,94500.0,0.02498]
[1763398581773,0.01999998,94530.0,94501.0,0.01080412]
[1763398581976,0.00999999,94530.0,94502.0,3.0]
[1763398582176,0.00999999,94530.0,94504.0,3.0]
[1763398582378,0.02887,94529.0,94505.0,0.0211629]
[1763398582576,0.02887,94529.0,94506.0,0.01863267]
[1763398582950,0.01999998,94530.0,94509.0,0.001]
[1763398582951,0.00999999,94530.0,94509.0,0.001]
[1763398583164,0.00999999,94530.0,94509.0,0.01829045]
[1763398583389,0.00999999,94550.0,94511.0,3.0]
[1763398583598,0.05764,94569.0,94521.0,0.323]
[1763398583809,0.01019999,94570.0,94525.0,0.323]
[1763398584016,0.00033173,94560.0,94528.0,0.323]
[1763398584220,0.00033173,94560.0,94529.0,3.02115752]
[1763398584429,0.00033173,94560.0,94531.0,3.0]
[1763398584630,0.00033173,94560.0,94530.0,0.0211573]
[1763398584631,0.00033173,94560.0,94535.0,3.02742496]
[1763398584843,0.00033173,94560.0,94537.0,3.0]
[1763398585065,0.00033173,94560.0,94539.0,3.0]
[1763398585264,0.00033173,94560.0,94540.0,0.02115506]
[1763398585638,0.00033173,94560.0,94548.0,0.02742496]
[1763398585873,0.00033173,94560.0,94549.0,0.01966943]
[1763398586012,0.01033172,94560.0,94548.0,0.02742496]
[1763398586386,0.00033173,94560.0,94554.0,0.02742496]
[1763398586575,0.00033173,94560.0,94555.0,0.02115171]
[1763398586790,0.00033173,94560.0,94549.0,0.02742496]
[1763398587144,0.00033173,94560.0,94550.0,0.04463762]
[1763398587443,0.00033173,94560.0,94551.0,0.02742496]
[1763398588175,0.00033173,94560.0,94552.0,0.04461836]
[1763398588357,0.00033173,94560.0,94555.0,0.02742496]
[1763398588558,0.00033173,94560.0,94556.0,0.0379972]
[1763398588786,0.00033173,94560.0,94557.0,0.02206397]
[1763398588945,0.00033173,94560.0,94558.0,0.043215]
[1763398589149,0.00033173,94560.0,94559.0,0.02206397]
[1763398589347,0.00033173,94560.0,94559.0,0.04321478]
[1763398589565,0.00033173,94560.0,94559.0,3.02206397]
[1763398590050,0.00033173,94560.0,94559.0,3.06548271]
[1763398590252,0.00999999,94600.0,94559.0,3.02206397]
[1763398590253,0.01099,94595.0,94559.0,3.02206397]
[1763398590450,0.01112161,94595.0,94577.0,0.02768773]
[1763398590676,0.01112161,94595.0,94578.0,0.02206397]
[1763398590878,0.00013161,94595.0,94579.0,0.02206397]
[1763398591086,0.00013161,94595.0,94580.0,0.0497517]
[1763398591287,0.00013161,94595.0,94582.0,0.02768773]
[1763398591660,0.00013161,94595.0,94583.0,0.04320941]
[1763398591872,0.00013161,94595.0,94584.0,0.02206397]
[1763398592039,0.00013161,94595.0,94570.0,0.05537547]
[1763398592040,0.00013161,94595.0,94586.0,3.02768773]
[1763398592266,0.00013161,94595.0,94589.0,0.02768773]
[1763398592450,0.00013161,94595.0,94590.0,0.04320785]
[1763398592667,0.00013161,94595.0,94591.0,0.02206397]
[1763398592855,0.00013161,94595.0,94592.0,0.0432074]
[1763398593081,0.00013161,94595.0,94593.0,0.02206397]
[1763398593366,0.00013161,94595.0,94594.0,0.02206397]
[1763398593800,0.00013161,94595.0,94584.0,0.04320919]
[1763398593801,0.00999999,94590.0,94584.0,0.04320919]
[1763398593998,0.00999999,94590.0,94585.0,0.02206397]
[1763398594176,0.0571,94589.0,94586.0,0.02206397]
[1763398594381,0.0571,94589.0,94587.0,0.02206397]
[1763398594527,0.0571,94589.0,94588.0,0.02206397]
[1763398594722,0.00999999,94590.0,94588.0,0.02206397]
[1763398594967,0.0212907,94595.0,94589.0,0.02206397]
[1763398595182,0.00013161,94595.0,94590.0,0.02206397]
[1763398595375,0.00013161,94595.0,94573.0,0.05537547]
[1763398595376,0.00013161,94595.0,94591.0,0.02206397]
[1763398595575,0.00013161,94595.0,94592.0,0.02206397]
[1763398595774,0.00013161,94595.0,94593.0,0.02206397]
[1763398596011,0.00013161,94595.0,94594.0,0.02206397]
[1763398596270,0.00185446,94595.0,94594.0,0.02206397]
[1763398596666,0.00185446,94595.0,94579.0,0.02114634]
[1763398596894,0.0571,94594.0,94589.0,0.02782431]
[1763398597193,0.0571,94594.0,94565.0,0.07419817]
[1763398597194,0.03280716,94593.0,94590.0,0.02225945]
[1763398597395,0.0571,94592.0,94591.0,0.02229022]
[1763398597951,0.09401,94592.0,94591.0,0.02229022]
[1763398598157,0.43816909,94592.0,94591.0,0.02229022]
[1763398598277,0.41701,94592.0,94591.0,0.02229022]
[1763398598702,0.41801,94592.0,94591.0,0.02229022]
[1763398599761,0.41801,94592.0,94591.0,2.2e-07]
[1763398600173,0.09501,94592.0,94591.0,2.2e-07]
[1763398600375,0.11616909,94592.0,94576.0,0.02782431]
[1763398600587,0.03691,94577.0,94576.0,0.02782431]
[1763398600788,0.03691,94577.0,94531.0,0.09274772]
[1763398600789,0.03691,94577.0,94571.0,0.02782431]
[1763398601030,0.01999998,94580.0,94570.0,0.02782431]
[1763398601031,0.065,94572.0,94570.0,0.02782431]
[1763398601224,0.02115909,94571.0,94569.0,0.02782431]
[1763398601448,0.18242087,94571.0,94566.0,0.02782431]
[1763398601650,0.18242087,94571.0,94567.0,0.02782431]
[1763398601801,0.10416178,94569.0,94566.0,0.02782431]
[1763398601968,0.10416178,94569.0,94561.0,0.02782431]
[1763398602186,0.10416178,94569.0,94545.0,0.05564863]
[1763398602187,0.07941,94568.0,94560.0,0.02782431]
[1763398602385,0.07941,94568.0,94558.0,0.02782431]
[1763398602386,0.00080612,94562.0,94558.0,0.02782431]
[1763398602663,0.065,94559.0,94558.0,0.02782431]
[1763398602850,0.06572275,94559.0,94551.0,0.03709908]
[1763398603158,0.03691,94552.0,94550.0,0.03709908]
[1763398603508,0.03691,94552.0,94550.0,0.00013173]
[1763398604008,0.02809,94559.0,94550.0,0.03723081]
[1763398604213,0.0571,94551.0,94550.0,0.03723081]
[1763398604422,0.02809,94559.0,94550.0,0.00013173]
[1763398604636,0.0571,94558.0,94557.0,0.02788616]
[1763398604845,0.0571,94558.0,94554.0,0.02788616]
[1763398604846,0.36641874,94557.0,94554.0,0.02788616]
[1763398605183,0.36641874,94557.0,94550.0,0.00013173]
[1763398605184,0.35991,94551.0,94550.0,0.00013173]
[1763398605594,0.41701,94551.0,94550.0,0.00013173]
[1763398607287,0.09401,94551.0,94550.0,0.00013173]
[1763398608127,0.02809,94559.0,94550.0,0.00013173]
[1763398608333,0.0005282,94552.0,94551.0,0.02788616]
[1763398608548,0.0005282,94552.0,94551.0,0.04903876]
[1763398608758,0.0005282,94552.0,94551.0,0.0211526]
[1763398609391,0.0005282,94552.0,94550.0,0.00013173]
[1763398609602,0.05891386,94560.0,94550.0,0.00013173]
[1763398611131,0.03691,94551.0,94550.0,0.00013173]
[1763398611340,0.03691,94551.0,94527.0,0.05564863]
[1763398611341,0.0452326,94550.0,94534.0,0.02787399]
[1763398611562,0.03691,94535.0,94526.0,0.02787399]
[1763398611776,0.02809,94535.0,94528.0,0.02787399]
[1763398611993,0.02809,94535.0,94507.0,0.09648817]
[1763398611994,0.0571,94534.0,94529.0,0.02231554]
[1763398612214,0.0571,94534.0,94524.0,0.02787399]
[1763398612215,0.0571,94534.0,94530.0,0.02231554]
[1763398612424,0.0571,94534.0,94531.0,0.02231554]
[1763398612624,0.0571,94534.0,94506.0,0.07419817]
[1763398612625,0.0571,94534.0,94532.0,0.02231554]
[1763398612832,0.03691,94533.0,94525.0,0.02787399]
[1763398613034,0.03691,94533.0,94526.0,0.02230895]
[1763398613242,0.04175856,94535.0,94527.0,0.02230895]
[1763398613446,0.04175856,94535.0,94507.0,0.02116245]
[1763398613447,0.0571,94532.0,94528.0,0.02230895]
[1763398613652,0.0571,94532.0,94529.0,0.02230895]
[1763398613824,0.0571,94532.0,94530.0,0.02230895]
[1763398614034,0.0571,94532.0,94517.0,0.02787399]
[1763398614237,0.0571,94532.0,94511.0,0.03709908]
[1763398614238,0.0571,94532.0,94518.0,0.02230909]
[1763398614441,0.0571,94532.0,94519.0,0.02230909]
[1763398614646,0.0571,94532.0,94520.0,0.02230909]
[1763398614863,0.0571,94532.0,94511.0,0.03709908]
[1763398614864,0.0571,94546.0,94521.0,0.0434684]
[1763398615213,0.001,94532.0,94525.0,0.02787399]
[1763398615414,0.00181386,94540.0,94531.0,0.0274]
[1763398615616,0.00181386,94540.0,94532.0,0.04346594]
[1763398615798,0.00181386,94540.0,94533.0,0.02230909]
[1763398616061,0.00181386,94540.0,94534.0,0.04346549]
[1763398616262,0.02809,94549.0,94535.0,0.02230909]
[1763398616466,0.02809,94549.0,94536.0,0.02115596]
[1763398616693,0.0571,94548.0,94532.0,0.02230909]
[1763398616909,0.0571,94548.0,94523.0,0.02391]
[1763398616910,0.0571,94548.0,94533.0,0.02230909]
[1763398617115,0.00181386,94540.0,94534.0,0.02230909]
[1763398617322,0.00181386,94540.0,94526.0,0.02230909]
[1763398617492,0.00181386,94540.0,94527.0,0.02230909]
[1763398617731,0.00181386,94540.0,94528.0,0.02230909]
[1763398617969,0.00013154,94550.0,94539.0,0.06722]
[1763398618187,0.00013154,94550.0,94540.0,0.04346415]
[1763398618392,0.00013154,94550.0,94549.0,0.03844]
[1763398618823,0.00013154,94550.0,94549.0,0.09838]
[1763398618995,0.00013154,94550.0,94543.0,0.02230909]
[1763398619209,0.00013154,94550.0,94544.0,0.02230909]
[1763398619423,0.00013154,94550.0,94549.0,0.03844]
[1763398619643,0.00013154,94550.0,94549.0,0.44142305]
[1763398619866,0.00013154,94550.0,94549.0,0.44257909]
[1763398620070,0.00013154,94550.0,94549.0,0.11957909]
[1763398620292,0.00013154,94550.0,94549.0,0.14073214]
[1763398620501,0.00013154,94550.0,94549.0,3.14073214]
[1763398620712,0.00060414,94550.0,94549.0,3.11957909]
[1763398620935,0.323,94610.0,94549.0,3.11957909]
[1763398620936,0.0279,94608.0,94552.0,0.323]
[1763398621180,0.0279,94608.0,94562.0,3.0]
[1763398621181,0.02803166,94608.0,94562.0,3.0]
[1763398621397,0.02803166,94608.0,94567.0,3.0]
[1763398621614,0.00181386,94600.0,94563.0,0.38183]
[1763398621833,0.02803166,94608.0,94564.0,0.10222924]
[1763398622056,0.02803166,94608.0,94565.0,0.40407955]